bitfinex-derivatives/quotes_SOLF0:USTF0_20240926
["timestamp","ask_amount","ask_price","bid_price","bid_amount"]
[1727368804858,3.1709,157.66,157.57,24.37]
[1727368805061,1.3617,157.69,157.55,25.6383]
[1727368805062,3.17878846,157.67,157.55,25.6383]
[1727368805264,24.37,157.65,157.55,1.2683]
[1727368805659,24.37,157.63,157.55,1.2683]
[1727368806061,24.37,157.63,157.55,3.1729]
[1727368806262,1.3572,157.62,157.55,3.1729]
[1727368806466,1.3572,157.62,157.52,3.21079]
[1727368806656,3.1722,157.6,157.56,3.1728]
[1727368806862,1.3572,157.62,157.52,3.1632413]
[1727368807174,3.1726,157.58,157.5,100.49]
[1727368807363,1.3572,157.62,157.5,103.71511011]
[1727368807558,3.1725,157.58,157.5,103.71511011]
[1727368807758,3.1725,157.58,157.55,3.173]
[1727368807966,24.37,157.6,157.5,103.71511011]
[1727368808468,24.37,157.6,157.53,3.1735]
[1727368808667,24.37,157.6,157.5,103.71511011]
[1727368809000,24.37,157.6,157.5,79.34511011]
[1727368809170,24.37,157.6,157.5,3.22511011]
[1727368809371,24.37,157.6,157.48,28.3167]
[1727368809372,3.173,157.56,157.52,3.1736]
[1727368809764,3.173,157.56,157.48,28.3167]
[1727368809765,24.37,157.58,157.48,2.6149]
[1727368810267,24.37,157.58,157.48,1.2981]
[1727368810464,3.1736,157.53,157.49,3.1742]
[1727368810762,24.37,157.58,157.48,1.2981]
[1727368811168,24.37,157.55,157.45,3.21692997]
[1727368811370,24.37,157.55,157.44,1.2804]
[1727368811559,3.1737,157.52,157.49,3.1742]
[1727368811965,24.37,157.55,157.44,1.2804]
[1727368812269,24.37,157.53,157.44,4.48685654]
[1727368812585,24.37,157.53,157.45,3.1749]
[1727368812770,27.57565955,157.53,157.4,24.37]
[1727368812968,24.37,157.5,157.37,3.8455]
[1727368813172,3.20565955,157.53,157.37,3.8455]
[1727368813173,24.37,157.48,157.37,3.8455]
[1727368813371,1.3753,157.47,157.37,3.8455]
[1727368813667,4.5501,157.47,157.37,3.8455]
[1727368813875,1.3753,157.47,157.38,24.37]
[1727368814367,24.37,157.5,157.38,24.37]
[1727368814567,566.345,157.92,157.45,24.37]
[1727368814568,224.0,157.68,157.45,24.37]
[1727368814766,24.37,157.58,157.46,5.81224927]
[1727368814969,1.2831,157.59,157.46,5.81224927]
[1727368814970,24.37,157.55,157.46,1.2991]
[1727368815273,3.18660848,157.54,157.46,1.2991]
[1727368815470,24.37,157.55,157.46,1.2991]
[1727368815471,3.1738,157.52,157.46,1.2991]
[1727368815671,27.58804274,157.55,157.46,1.2991]
[1727368816276,24.37,157.55,157.49,3.1741]
[1727368816667,1.0038,157.56,157.46,1.2991]
[1727368817470,1.2993,157.57,157.47,24.37]
[1727368817871,3.1732,157.55,157.51,3.1737]
[1727368818172,28.85908366,157.57,157.46,1.2991]
[1727368818398,3.1734,157.54,157.46,1.2991]
[1727368820066,1.2993,157.57,157.47,24.37]
[1727368820482,3.1733,157.54,157.5,3.1741]
[1727368820767,3.1733,157.54,157.47,24.37]
[1727368820969,4.52551106,157.57,157.46,1.2991]
[1727368821570,3.1733,157.54,157.5,3.1739]
[1727368821770,4.52551106,157.57,157.5,3.1739]
[1727368822267,4.52551106,157.57,157.45,24.37]
[1727368822268,3.1739,157.51,157.48,3.1744]
[1727368822472,24.37,157.55,157.42,24.37]
[1727368822882,24.37,157.53,157.41,1.3351]
[1727368823177,1.3848,157.52,157.4,108.04127529]
[1727368823374,1.3848,157.52,157.44,3.1752]
[1727368823884,3.1746,157.48,157.45,3.1751]
[1727368824775,3.1746,157.48,157.44,3.1752]
[1727368825280,3.1746,157.48,157.45,3.1751]
[1727368826676,24.39,157.51,157.43,3.1754]
[1727368826877,24.39,157.51,157.4,84.93427529]
[1727368827278,3.1745,157.48,157.44,3.1752]
[1727368827576,24.39,157.51,157.4,84.93427529]
[1727368827774,3.1745,157.49,157.45,3.175]
[1727368828284,1.3848,157.52,157.4,84.93427529]
[1727368828285,4.5587,157.52,157.49,3.1743]
[1727368828475,4.5587,157.52,157.41,24.39]
[1727368828476,1.3848,157.52,157.41,24.39]
[1727368828779,1.3848,157.52,157.48,3.1744]
[1727368828780,4.5586,157.52,157.48,3.1744]
[1727368828981,1.3848,157.52,157.48,3.1744]
[1727368829478,3.174,157.51,157.48,3.1744]
[1727368829980,1.3848,157.52,157.47,3.1746]
[1727368830177,1.3848,157.52,157.41,24.39]
[1727368830681,3.1743,157.49,157.4,84.93427529]
[1727368830876,24.39,157.5,157.44,3.1752]
[1727368831079,24.39,157.5,157.4,84.93427529]
[1727368831380,3.1752,157.45,157.4,84.93427529]
[1727368831588,24.39,157.5,157.43,3.1755]
[1727368831785,3.175,157.46,157.4,84.93427529]
[1727368832084,3.175,157.46,157.42,3.1755]
[1727368832282,3.1753,157.44,157.4,84.93427529]
[1727368832482,3.21410041,157.49,157.4,2.5335]
[1727368832683,3.21410041,157.49,157.42,3.1757]
[1727368832876,3.1752,157.45,157.42,3.1757]
[1727368833076,3.1752,157.45,157.4,1.2705]
[1727368833282,3.11912897,157.49,157.41,3.1758]
[1727368833582,3.11912897,157.49,157.38,1.3042]
[1727368833583,24.39,157.43,157.38,1.3042]
[1727368833895,24.39,157.43,157.38,4.4807]
[1727368834101,24.39,157.46,157.38,1.3042]
[1727368834780,24.39,157.51,157.39,24.39]
[1727368834983,3.1747,157.48,157.43,3.1754]
[1727368835381,3.1747,157.48,157.4,1.3389]
[1727368835582,3.1747,157.48,157.43,3.1753]
[1727368835983,3.1747,157.48,157.44,3.1753]
[1727368836382,3.1749,157.46,157.4,1.3389]
[1727368836685,24.39,157.51,157.4,1.3389]
[1727368836983,3.1745,157.48,157.43,3.1755]
[1727368837385,24.39,157.51,157.43,3.1755]
[1727368837584,24.39,157.51,157.42,3.1756]
[1727368838182,24.39,157.49,157.42,3.1756]
[1727368838777,3.1747,157.47,157.43,3.1755]
[1727368839786,3.1749,157.46,157.43,3.1755]
[1727368842584,27.5884221,157.49,157.4,1.3389]
[1727368843180,24.39,157.49,157.4,1.3389]
[1727368844185,27.5518923,157.49,157.41,3.1758]
[1727368845193,3.1752,157.45,157.42,3.1757]
[1727368845487,24.39,157.51,157.4,1.3389]
[1727368845691,3.1749,157.47,157.4,1.3389]
[1727368845891,24.39,157.51,157.4,1.3389]
[1727368845892,24.39,157.49,157.4,1.3389]
[1727368846485,27.61657529,157.49,157.4,1.3389]
[1727368847192,27.61657529,157.49,157.38,1.3042]
[1727368848095,27.61657529,157.49,157.41,3.1759]
[1727368848294,15.25,157.46,157.41,3.1759]
[1727368848493,15.25,157.46,157.38,1.3042]
[1727368850395,15.25,157.48,157.39,15.25]
[1727368850793,3.1749,157.46,157.43,3.1754]
[1727368851505,15.25,157.5,157.41,15.25]
[1727368852288,15.25,157.49,157.39,15.25]
[1727368852498,1.3848,157.52,157.37,1.2844]
[1727368852499,15.25,157.46,157.37,16.5344]
[1727368852895,15.25,157.46,157.41,3.1758]
[1727368853388,3.1754,157.44,157.41,3.1758]
[1727368857702,15.25,157.46,157.37,16.5344]
[1727368857703,3.1755,157.43,157.37,16.5344]
[1727368857906,15.25,157.46,157.37,16.5344]
[1727368858304,3.1754,157.44,157.41,3.1758]
[1727368858802,3.1756,157.43,157.41,3.1758]
[1727368859200,3.1754,157.44,157.41,3.1758]
[1727368859397,15.25,157.46,157.37,16.5344]
[1727368859794,3.1754,157.44,157.42,3.1757]
[1727368860002,15.25,157.46,157.37,16.5344]
[1727368860204,15.25,157.46,157.39,15.25]
[1727368860400,15.25,157.46,157.43,3.1754]
[1727368861807,15.25,157.48,157.43,3.1754]
[1727368862235,3.1747,157.47,157.44,3.1752]
[1727368862508,15.25,157.48,157.39,15.25]
[1727368862908,3.175,157.46,157.39,15.25]
[1727368863305,15.25,157.48,157.39,15.25]
[1727368863507,1.3848,157.52,157.41,3.1759]
[1727368863508,3.1754,157.44,157.41,3.1759]
[1727368863707,3.1754,157.44,157.38,1.3465]
[1727368864114,1.3848,157.52,157.38,1.3465]
[1727368864115,1.3848,157.52,157.43,15.25]
[1727368864415,1.3848,157.52,157.44,1.316]
[1727368864608,3.174,157.51,157.48,3.1744]
[1727368864804,1.3848,157.52,157.44,2.6207]
[1727368865212,15.25,157.51,157.44,2.6207]
[1727368865814,3.1745,157.49,157.45,3.1749]
[1727368866204,3.1745,157.49,157.46,3.1748]
[1727368866423,15.25,157.51,157.44,2.6207]
[1727368866719,15.25,157.49,157.44,2.6207]
[1727368867008,15.25,157.49,157.39,17.872]
[1727368867412,3.1749,157.46,157.43,3.1754]
[1727368868509,3.1753,157.44,157.39,17.872]
[1727368868713,15.25,157.47,157.39,2.622]
[1727368869208,15.25,157.47,157.41,3.1758]
[1727368869550,15.25,157.47,157.39,2.622]
[1727368869712,15.25,157.49,157.39,17.872]
[1727368869916,15.25,157.51,157.41,15.25]
[1727368870316,3.1746,157.48,157.41,15.25]
[1727368870812,15.25,157.51,157.41,15.25]
[1727368871004,3.1745,157.48,157.44,3.1752]
[1727368871211,15.25,157.5,157.44,3.1752]
[1727368871212,16.6348,157.52,157.44,3.17142181]
[1727368871517,3.1742,157.5,157.47,3.1745]
[1727368871817,16.6348,157.52,157.47,3.1745]
[1727368872116,16.6348,157.52,157.45,1.2918]
[1727368872509,3.1742,157.5,157.47,3.1747]
[1727368872812,16.6348,157.52,157.45,1.2918]
[1727368873014,3.1745,157.49,157.46,3.1748]
[1727368873410,16.6348,157.52,157.45,1.2918]
[1727368873610,3.1742,157.5,157.47,3.1746]
[1727368873813,16.6348,157.52,157.45,1.2918]
[1727368874213,15.25,157.5,157.39,16.5188]
[1727368874522,15.25,157.5,157.4,1.3407]
[1727368874744,15.25,157.5,157.44,3.1752]
[1727368874745,3.1747,157.47,157.44,3.1752]
[1727368874924,15.25,157.5,157.44,3.1752]
[1727368875117,15.25,157.5,157.4,1.3407]
[1727368875321,3.1749,157.47,157.44,3.1752]
[1727368876225,3.1749,157.46,157.44,3.1752]
[1727368876915,3.1751,157.45,157.43,3.1754]
[1727368877313,15.25,157.5,157.43,3.1754]
[1727368877511,15.25,157.47,157.4,1.3407]
[1727368878120,15.25,157.5,157.44,3.1752]
[1727368878820,3.1748,157.47,157.44,3.1752]
[1727368879521,3.1749,157.46,157.44,3.1752]
[1727368879719,3.1749,157.46,157.43,3.1754]
[1727368880122,3.1752,157.45,157.42,3.1756]
[1727368880320,15.25,157.47,157.4,1.3407]
[1727368880827,15.25,157.46,157.4,1.3407]
[1727368881311,3.1755,157.44,157.4,4.5167]
[1727368881720,3.1755,157.44,157.4,1.3407]
[1727368881911,3.1755,157.44,157.41,3.1759]
[1727368882115,3.1752,157.45,157.4,1.3407]
[1727368882517,3.1752,157.45,157.42,3.1757]
[1727368883424,15.25,157.46,157.4,1.3407]
[1727368884152,3.1756,157.43,157.4,4.5168]
[1727368884514,15.25,157.46,157.41,3.1758]
[1727368884710,15.25,157.46,157.4,1.3407]
[1727368884922,3.1752,157.45,157.42,3.1755]
[1727368885619,3.1752,157.45,157.41,3.1758]
[1727368885826,3.1752,157.45,157.4,1.3407]
[1727368886330,3.1752,157.45,157.42,3.1757]
[1727368886528,15.25,157.48,157.4,1.3407]
[1727368887121,3.1756,157.43,157.4,4.5167]
[1727368887324,15.25,157.48,157.4,4.5167]
[1727368887627,3.1754,157.44,157.4,4.5167]
[1727368888424,3.1754,157.44,157.41,3.1759]
[1727368889036,15.25,157.43,157.27,6.3573]
[1727368889229,15.25,157.43,157.33,1.3318]
[1727368889422,1.2967,157.47,157.34,4.47894112]
[1727368889728,15.25,157.42,157.35,4.47894112]
[1727368890027,15.25,157.42,157.33,4.48973012]
[1727368890238,15.25,157.42,157.34,19.72847603]
[1727368890430,15.25,157.44,157.34,18.42127483]
[1727368890735,15.25,157.44,157.39,3.1761]
[1727368890736,3.1758,157.42,157.39,3.1761]
[1727368892232,3.1759,157.41,157.38,3.1764]
[1727368892831,15.25,157.44,157.36,15.25]
[1727368893033,3.1758,157.42,157.39,3.1761]
[1727368893232,1.3129,157.46,157.38,15.25]
[1727368893428,1.3129,157.46,157.35,4.48102823]
[1727368893742,1.3129,157.46,157.37,15.25]
[1727368893743,16.5629,157.46,157.37,15.25]
[1727368894329,3.1754,157.44,157.37,15.25]
[1727368895133,3.1754,157.44,157.4,3.1759]
[1727368896028,16.5629,157.46,157.39,3.1763]
[1727368896234,16.5629,157.46,157.37,15.25]
[1727368896438,16.5629,157.46,157.38,3.1763]
[1727368896854,15.25,157.44,157.35,15.25]
[1727368897440,15.25,157.42,157.34,3.17127483]
[1727368897634,15.25,157.42,157.35,4.48274865]
[1727368897827,15.25,157.42,157.36,3.17913147]
[1727368898030,15.25,157.42,157.33,16.5818]
[1727368898233,3.1762,157.4,157.34,4.48290543]
[1727368898438,3.1762,157.4,157.35,4.48290543]
[1727368898631,3.1762,157.4,157.33,16.5818]
[1727368898842,3.1759,157.41,157.34,19.73237137]
[1727368899134,15.25,157.45,157.35,4.48237137]
[1727368899542,3.1762,157.4,157.37,3.1766]
[1727368899937,15.25,157.45,157.34,15.25]
[1727368900135,15.25,157.45,157.35,4.4819861]
[1727368900337,15.25,157.45,157.34,15.25]
[1727368900534,3.1759,157.41,157.38,3.1764]
[1727368901638,3.1754,157.44,157.41,3.1758]
[1727368901866,1.3129,157.46,157.36,15.25]
[1727368902041,15.25,157.44,157.34,16.5424]
[1727368902343,3.176,157.41,157.35,4.48130629]
[1727368902536,15.25,157.44,157.36,15.25]
[1727368902740,16.5629,157.46,157.36,15.25]
[1727368903438,3.1755,157.43,157.4,3.176]
[1727368904974,3.1755,157.43,157.34,1.2924]
[1727368904975,15.25,157.44,157.34,16.5424]
[1727368905238,15.25,157.44,157.35,4.48262491]
[1727368905436,15.25,157.44,157.37,3.1766]
[1727368905834,15.25,157.44,157.34,16.5424]
[1727368906040,15.25,157.42,157.33,19.68310501]
[1727368906237,15.25,157.42,157.34,4.48519371]
[1727368906540,15.25,157.42,157.35,3.1769]
[1727368907143,3.1765,157.38,157.35,3.1769]
[1727368907647,15.25,157.37,157.27,15.25]
[1727368907842,15.25,157.37,157.28,4.48702637]
[1727368908044,15.25,157.37,157.29,4.48702637]
[1727368908254,15.25,157.37,157.3,4.48702637]
[1727368908445,15.25,157.37,157.3,3.12019897]
[1727368908644,15.25,157.37,157.27,16.6132]
[1727368908847,15.25,157.35,157.28,4.48708092]
[1727368909042,15.25,157.35,157.29,4.48708092]
[1727368909250,3.1776,157.33,157.3,3.1781]
[1727368909749,3.1776,157.33,157.3,6.36549495]
[1727368912842,3.1777,157.32,157.3,3.18739495]
[1727368913047,3.1777,157.32,157.29,3.1782]
[1727368913646,3.1777,157.32,157.3,3.23583076]
[1727368914551,3.1777,157.32,157.3,6.41393076]
[1727368914851,3.1776,157.33,157.3,6.41393076]
[1727368917755,15.25,157.33,157.26,3.16271542]
[1727368917958,15.25,157.33,157.23,15.25]
[1727368918158,3.1787,157.28,157.25,3.1791]
[1727368918657,1.3408,157.32,157.23,18.46802877]
[1727368918856,3.1784,157.29,157.26,3.1789]
[1727368919459,3.1784,157.29,157.27,3.1787]
[1727368920460,1.3408,157.32,157.27,3.1787]
[1727368921071,3.1782,157.3,157.27,3.1787]
[1727368921659,1.3408,157.32,157.26,15.25]
[1727368921852,15.25,157.36,157.26,15.25]
[1727368922160,3.1778,157.32,157.29,3.1783]
[1727368922356,16.5027,157.38,157.28,15.25]
[1727368922562,16.5027,157.38,157.24,15.25]
[1727368922563,16.5027,157.38,157.3,15.25]
[1727368922766,3.1771,157.35,157.32,3.1776]
[1727368923561,3.1774,157.34,157.31,3.1778]
[1727368923760,3.1774,157.34,157.3,18.4151113]
[1727368923962,3.1774,157.34,157.31,3.1778]
[1727368924163,3.1771,157.35,157.3,18.4151113]
[1727368924463,3.1771,157.35,157.32,3.1776]
[1727368925061,15.25,157.36,157.3,3.178]
[1727368925463,3.1775,157.34,157.27,15.25]
[1727368925665,3.1775,157.34,157.31,3.1778]
[1727368926056,3.1772,157.35,157.32,3.1777]
[1727368926305,15.25,157.36,157.28,1.2568]
[1727368926668,16.5027,157.38,157.28,1.2568]
[1727368926968,1.2527,157.38,157.3,15.25]
[1727368927268,3.177,157.36,157.3,15.25]
[1727368927770,3.177,157.36,157.33,3.1774]
[1727368928369,1.2527,157.38,157.32,3.1777]
[1727368928573,1.2527,157.38,157.29,1.2505]
[1727368928574,15.25,157.37,157.29,1.2505]
[1727368929273,15.25,157.37,157.3,3.21368826]
[1727368929510,15.25,157.35,157.29,1.2505]
[1727368929774,3.177,157.36,157.33,3.1774]
[1727368929970,3.177,157.36,157.3,3.19080372]
[1727368930378,11.0227,157.38,157.33,9.77]
[1727368930678,2.2964,157.41,157.29,1.2505]
[1727368930679,9.77,157.39,157.35,9.77]
[1727368930871,9.77,157.4,157.38,3.1765]
[1727368931176,9.77,157.4,157.36,9.77]
[1727368931473,9.77,157.4,157.37,3.1767]
[1727368931980,3.1763,157.39,157.36,3.1768]
[1727368932180,9.77,157.39,157.35,13.01769722]
[1727368932476,1.3792,157.43,157.35,3.1771]
[1727368932477,3.1766,157.38,157.35,3.1771]
[1727368932975,3.1764,157.39,157.36,3.1768]
[1727368933174,15.26,157.41,157.31,15.26]
[1727368933383,15.26,157.41,157.31,18.44820209]
[1727368933577,3.1762,157.4,157.31,18.44820209]
[1727368933882,16.6392,157.43,157.33,15.26]
[1727368934073,16.6392,157.43,157.34,1.2868]
[1727368934272,3.1761,157.4,157.37,3.1766]
[1727368935984,3.1765,157.38,157.34,1.2868]
[1727368936377,16.6392,157.43,157.34,1.2868]
[1727368936583,3.1764,157.39,157.36,3.1769]
[1727368936977,3.1764,157.39,157.34,1.2868]
[1727368937173,16.6392,157.43,157.34,1.2868]
[1727368937578,3.1764,157.39,157.34,1.2868]
[1727368937979,15.26,157.41,157.35,3.177]
[1727368938282,15.26,157.41,157.34,1.2868]
[1727368938579,15.26,157.41,157.35,3.177]
[1727368938580,3.1765,157.38,157.35,3.177]
[1727368939682,3.1768,157.37,157.34,4.464]
[1727368939894,3.1768,157.37,157.34,1.2868]
[1727368940480,3.1768,157.37,157.34,4.464]
[1727368942895,15.26,157.41,157.34,1.2868]
[1727368943186,16.6392,157.43,157.34,1.2868]
[1727368943590,16.6392,157.43,157.35,1.2853]
[1727368943993,3.176,157.41,157.38,3.1763]
[1727368949100,3.1761,157.4,157.37,3.1767]
[1727368949295,16.6392,157.43,157.37,3.1767]
[1727368949492,16.6392,157.43,157.34,1.2868]
[1727368949493,3.1768,157.37,157.34,1.2868]
[1727368949806,15.26,157.41,157.34,1.2868]
[1727368950000,3.1765,157.39,157.36,3.1769]
[1727368950892,3.1765,157.38,157.36,3.1769]
[1727368951302,3.1765,157.38,157.35,3.177]
[1727368952799,12.9464,157.39,157.36,3.1768]
[1727368953196,1.3792,157.43,157.38,9.77]
[1727368953394,3.176,157.41,157.38,9.77]
[1727368953999,3.176,157.41,157.38,12.9464]
[1727368956202,9.77,157.42,157.37,12.9466]
[1727368956399,9.77,157.4,157.34,1.2868]
[1727368956597,9.77,157.4,157.36,9.77]
[1727368956798,3.1764,157.39,157.37,3.1767]
[1727368957304,9.77,157.4,157.36,9.77]
[1727368957305,3.1765,157.38,157.36,12.9468]
[1727368957799,3.1765,157.38,157.36,3.1768]
[1727368958002,3.1765,157.38,157.35,9.77]
[1727368958003,3.1767,157.37,157.35,12.947]
[1727368958207,9.77,157.4,157.35,9.77]
[1727368958902,9.77,157.4,157.35,12.947]
[1727368959497,3.1766,157.38,157.35,12.947]
[1727368959698,9.77,157.42,157.37,9.77]
[1727368959902,3.1761,157.41,157.39,9.77]
[1727368960208,3.1761,157.41,157.34,1.2868]
[1727368960209,11.1492,157.43,157.38,9.77]
[1727368960839,3.176,157.41,157.38,12.9464]
[1727368962006,3.1761,157.4,157.38,12.9464]
[1727368962402,3.1761,157.4,157.37,3.1767]
[1727368962608,3.1761,157.4,157.37,12.9467]
[1727368962908,3.1761,157.4,157.38,9.77]
[1727368963509,9.77,157.42,157.38,9.77]
[1727368963701,9.77,157.42,157.38,12.9464]
[1727368963902,1.3792,157.43,157.39,9.77]
[1727368964304,1.3792,157.43,157.4,3.1759]
[1727368964501,1.3792,157.43,157.34,1.2868]
[1727368964708,1.3792,157.43,157.38,9.77]
[1727368964903,1.3792,157.43,157.38,12.9463]
[1727368965100,1.3792,157.43,157.38,9.77]
[1727368965707,3.1758,157.42,157.39,3.1762]
[1727368967019,3.1754,157.44,157.41,9.77]
[1727368967323,1.299,157.48,157.43,9.77]
[1727368967324,9.77,157.47,157.43,9.77]
[1727368967714,3.1753,157.45,157.43,9.77]
[1727368968520,9.77,157.46,157.41,9.77]
[1727368968816,2.3557,157.49,157.43,9.77]
[1727368969153,9.77,157.47,157.43,9.77]
[1727368969418,3.1753,157.44,157.43,9.77]
[1727368969631,3.1753,157.44,157.4,3.14196536]
[1727368969632,3.1753,157.44,157.41,9.77]
[1727368969819,3.1753,157.44,157.41,12.9458]
[1727368971019,9.77,157.45,157.39,9.77]
[1727368971414,3.1757,157.42,157.39,12.9462]
[1727368971916,3.1759,157.42,157.39,9.77]
[1727368972317,9.77,157.43,157.39,9.77]
[1727368972620,2.3557,157.49,157.39,9.77]
[1727368972621,9.77,157.44,157.39,9.77]
[1727368973720,3.1759,157.41,157.39,9.77]
[1727368974017,9.77,157.44,157.4,9.77]
[1727368974353,9.77,157.46,157.4,9.77]
[1727368974723,3.1756,157.43,157.4,12.946]
[1727368976921,3.1757,157.42,157.4,12.946]
[1727368977412,3.1759,157.41,157.4,9.77]
[1727368979013,3.1757,157.42,157.4,9.77]
[1727368979520,3.1756,157.43,157.4,12.946]
[1727368979711,3.1756,157.43,157.42,9.77]
[1727368983026,3.1757,157.42,157.41,9.77]
[1727368983219,9.77,157.45,157.39,3.10542749]
[1727368983525,6.3493,157.48,157.36,1.3436]
[1727368983720,9.77,157.45,157.4,9.77]
[1727368984820,3.1759,157.41,157.4,9.77]
[1727368985328,3.1762,157.4,157.39,9.77]
[1727368987228,3.176,157.41,157.39,12.9463]
[1727368987425,3.176,157.41,157.4,9.77]
[1727368987827,3.176,157.41,157.36,1.3436]
[1727368988026,3.1761,157.4,157.36,1.3436]
[1727368988227,3.1761,157.4,157.39,9.77]
[1727368988430,9.77,157.45,157.39,9.77]
[1727368988636,3.1761,157.4,157.38,9.77]
[1727368988926,9.77,157.42,157.38,9.77]
[1727368989726,3.1762,157.4,157.38,9.77]
[1727368990724,9.77,157.41,157.32,4.42466716]
[1727368991031,9.77,157.39,157.32,1.271]
[1727368991226,3.1769,157.37,157.34,11.0568]
[1727368991529,9.77,157.39,157.34,11.0568]
[1727368991930,3.1768,157.37,157.34,14.234]
[1727368992130,3.1768,157.37,157.35,9.77]
[1727368992426,3.1762,157.4,157.37,3.1765]
[1727368992632,3.1762,157.4,157.39,9.77]
[1727368993132,3.1763,157.39,157.38,9.77]
[1727368997536,3.1766,157.38,157.36,9.77]
[1727368998138,3.1767,157.37,157.36,9.77]
[1727368998335,3.1767,157.37,157.35,9.77]
[1727368998531,3.1769,157.36,157.35,9.77]
[1727368999335,3.1772,157.35,157.32,1.271]
[1727368999537,3.1772,157.35,157.32,11.041]
[1727369000036,3.1772,157.35,157.32,14.2186]
[1727369000240,3.1772,157.35,157.33,9.77]
[1727369001042,3.1772,157.35,157.33,12.9475]
[1727369002542,3.1772,157.35,157.33,9.77]
[1727369003341,3.1772,157.35,157.32,4.4486]
[1727369003541,9.77,157.37,157.32,14.2186]
[1727369004648,3.1773,157.35,157.32,14.2186]
[1727369005242,1.3493,157.41,157.34,9.77]
[1727369005443,9.77,157.4,157.35,9.77]
[1727369006054,3.1768,157.37,157.35,9.77]
[1727369006255,3.1768,157.37,157.34,12.9472]
[1727369007151,3.1768,157.37,157.34,9.77]
[1727369007348,3.1766,157.38,157.36,9.77]
[1727369008058,3.1767,157.37,157.36,9.77]
[1727369008258,3.1767,157.37,157.35,3.177]
[1727369008653,3.1767,157.37,157.32,1.271]
[1727369008654,3.177,157.36,157.33,9.77]
[1727369008953,9.77,157.37,157.33,9.77]
[1727369009253,9.77,157.36,157.32,9.77]
[1727369009459,1.3493,157.41,157.32,9.77]
[1727369009753,3.1773,157.34,157.32,3.1775]
[1727369010055,9.77,157.36,157.32,3.1775]
[1727369010357,3.1773,157.34,157.32,3.1775]
[1727369016363,3.1772,157.35,157.33,12.9475]
[1727369016658,9.77,157.38,157.34,9.77]
[1727369016859,9.77,157.38,157.33,9.77]
[1727369017549,9.77,157.38,157.33,12.9474]
[1727369018156,9.77,157.37,157.33,9.77]
[1727369018457,9.77,157.37,157.29,2.6651]
[1727369018657,9.77,157.35,157.3,9.77]
[1727369018853,9.77,157.33,157.26,1.336]
[1727369019056,25.3925,157.4,157.26,11.106]
[1727369019057,9.77,157.31,157.26,11.106]
[1727369020855,3.1781,157.3,157.28,85.65865548]
[1727369021858,12.948,157.31,157.28,85.65865548]
[1727369022361,3.178,157.31,157.28,85.65865548]
[1727369022959,12.9477,157.32,157.29,3.1782]
[1727369023160,3.1777,157.32,157.29,12.9482]
[1727369023454,3.177,157.36,157.33,3.1774]
[1727369023660,3.177,157.36,157.33,9.77]
[1727369024555,9.77,157.37,157.32,9.77]
[1727369024759,2.6392,157.41,157.3,12.96288851]